bitfinex-derivatives/quotes_BTCF0:USTF0_20241221
["timestamp","ask_amount","ask_price","bid_price","bid_amount"]
[1734796916223,0.051351,97402.0,97400.0,0.111]
[1734796916524,0.0343,97401.0,97400.0,0.111]
[1734796916705,0.3951,97401.0,97400.0,0.111]
[1734796918825,0.3961,97401.0,97400.0,0.111]
[1734796919118,0.3971,97401.0,97400.0,0.111]
[1734796922618,0.0363,97401.0,97400.0,0.111]
[1734796923225,0.002,97401.0,97400.0,0.111]
[1734796923416,0.002,97401.0,97400.0,0.4718]
[1734796923725,0.002,97401.0,97400.0,0.5397]
[1734796923924,0.15322846,97417.0,97400.0,0.54990086]
[1734796924227,0.15322846,97417.0,97412.0,0.412141]
[1734796924431,0.12273991,97430.0,97412.0,0.412141]
[1734796924722,0.12273991,97430.0,97412.0,0.6608]
[1734796925026,0.12273991,97430.0,97429.0,0.412132]
[1734796925918,0.1011473,97440.0,97429.0,0.412132]
[1734796925919,0.1524733,97440.0,97432.0,0.05133]
[1734796926123,0.01197972,97435.0,97432.0,0.05133]
[1734796926422,0.001,97430.0,97429.0,0.412132]
[1734796926621,0.002,97430.0,97429.0,0.412132]
[1734796927224,0.002,97430.0,97429.0,0.65758453]
[1734796928139,0.001,97430.0,97429.0,0.60625253]
[1734796928326,0.0654,97430.0,97429.0,0.60825253]
[1734796928621,0.0654,97430.0,97429.0,0.24745253]
[1734796928828,0.0654,97430.0,97429.0,0.002]
[1734796929021,0.051333,97427.0,97426.0,0.24545253]
[1734796929220,1.311333,97427.0,97426.0,0.14565253]
[1734796930327,0.0154,97427.0,97412.0,0.05134]
[1734796930626,0.051336,97420.0,97412.0,0.05134]
[1734796930931,0.1011473,97422.0,97409.0,0.3608]
[1734796931728,0.1011473,97422.0,97403.0,0.30681567]
[1734796932028,0.051345,97405.0,97397.0,0.33951567]
[1734796932220,0.0321,97404.0,97400.0,0.4718]
[1734796934622,0.0331,97404.0,97400.0,0.4718]
[1734796934823,0.0341,97404.0,97400.0,0.4718]
[1734796935434,0.002,97404.0,97403.0,0.051345]
[1734796936730,0.002,97404.0,97400.0,0.47324]
[1734796936921,0.051346,97401.0,97400.0,0.111]
[1734796937733,0.0348,97404.0,97400.0,0.111]
[1734796937931,0.0338,97404.0,97400.0,0.4718]
[1734796938131,0.0338,97404.0,97400.0,0.523147]
[1734796938132,0.001,97401.0,97400.0,0.523147]
[1734796938728,0.002,97401.0,97400.0,0.523147]
[1734796939035,0.001,97401.0,97400.0,0.523147]
[1734796939419,0.001,97401.0,97400.0,0.4718]
[1734796940524,0.002,97401.0,97400.0,0.4718]
[1734796941233,0.002,97401.0,97400.0,0.523147]
[1734796942937,0.002,97401.0,97400.0,0.70724891]
[1734796944134,0.002,97401.0,97400.0,0.883947]
[1734796944333,0.15322846,97429.0,97400.0,1.1326]
[1734796944334,0.04054225,97425.0,97400.0,1.1326]
[1734796944634,0.0302,97425.0,97422.0,0.3608]
[1734796944840,0.051335,97424.0,97422.0,0.3608]
[1734796945527,0.12373991,97423.0,97422.0,0.3608]
[1734796945725,0.001,97423.0,97422.0,0.3608]
[1734796946640,0.002,97423.0,97422.0,0.3608]
[1734796947431,0.001,97423.0,97422.0,0.3608]
[1734796950948,0.051336,97420.0,97419.0,0.18398828]
[1734796951739,0.051336,97420.0,97416.0,0.18398828]
[1734796952347,0.051338,97417.0,97416.0,0.18398828]
[1734796953260,0.001,97420.0,97414.0,0.18398828]
[1734796953461,0.051339,97416.0,97414.0,0.18398828]
[1734796953753,0.001,97420.0,97414.0,0.18398828]
[1734796953945,0.001,97417.0,97414.0,0.18398828]
[1734796954548,0.051339,97416.0,97414.0,0.18398828]
[1734796955053,0.051339,97416.0,97411.0,0.18398828]
[1734796955253,0.05134,97414.0,97411.0,0.18398828]
[1734796956056,0.05134,97414.0,97410.0,0.18398828]
[1734796956553,0.051341,97412.0,97410.0,0.18398828]
[1734796957346,0.051341,97412.0,97409.0,0.18398828]
[1734796957546,0.051342,97411.0,97409.0,0.18398828]
[1734796958768,0.051343,97408.0,97407.0,0.18398828]
[1734796960062,0.051344,97406.0,97405.0,0.18398828]
[1734796961263,0.051346,97401.0,97400.0,0.47316]
[1734796961571,0.051346,97401.0,97400.0,0.4718]
[1734796963063,0.052346,97401.0,97400.0,0.4718]
[1734796963462,0.052346,97401.0,97400.0,0.111]
[1734796967073,0.06257261,97401.0,97400.0,0.111]
[1734796978381,0.06257261,97401.0,97400.0,0.1085]
[1734796980883,0.06257261,97401.0,97400.0,0.29248828]
[1734796981076,0.001,97401.0,97400.0,0.65328828]
[1734796981282,0.052346,97401.0,97400.0,0.29248828]
[1734796982290,0.052346,97401.0,97400.0,0.1085]
[1734796988187,0.53621382,97401.0,97400.0,0.1085]
[1734796988685,0.17541382,97401.0,97400.0,0.1085]
[1734796989193,0.052346,97401.0,97400.0,0.1085]
[1734796990985,0.067786,97401.0,97400.0,0.1085]
[1734796991587,0.067786,97401.0,97400.0,0.35484322]
[1734796992896,0.067786,97401.0,97400.0,0.1085]
[1734796993306,0.428586,97401.0,97400.0,0.1085]
[1734796994392,0.428586,97401.0,97393.0,0.30681567]
[1734796994393,0.051348,97399.0,97393.0,0.30681567]
[1734796994592,0.3608,97394.0,97387.0,0.3681788]
[1734796994794,0.412153,97388.0,97387.0,0.3681788]
[1734796995596,0.42044617,97388.0,97387.0,0.3681788]
[1734796996203,0.051358,97380.0,97379.0,0.18478798]
[1734796996398,0.05965117,97380.0,97379.0,0.18478798]
[1734796997302,0.05136,97375.0,97372.0,0.3608]
[1734796997499,0.05965317,97375.0,97372.0,0.3608]
[1734796998005,0.05964895,97375.0,97372.0,0.3608]
[1734796998600,0.06064895,97375.0,97372.0,0.3608]
[1734796998802,0.06164895,97375.0,97370.0,0.18478798]
[1734797000092,0.06164895,97375.0,97364.0,0.3608]
[1734797000607,0.06162398,97375.0,97364.0,0.3608]
[1734797001405,0.18438808,97375.0,97364.0,0.3608]
[1734797002703,0.19464394,97375.0,97364.0,0.3608]
[1734797002908,0.051365,97365.0,97355.0,0.18478798]
[1734797003104,0.3608,97361.0,97355.0,0.18478798]
[1734797003306,0.3608,97361.0,97355.0,0.17685624]
[1734797003307,0.05137,97356.0,97355.0,0.17685624]
[1734797003605,0.05963398,97356.0,97355.0,0.17685624]
[1734797003803,0.05971852,97356.0,97355.0,0.17685624]
[1734797004208,0.05971852,97356.0,97341.0,0.3608]
[1734797004508,0.051377,97344.0,97341.0,0.3608]
[1734797004701,0.051377,97343.0,97341.0,0.3608]
[1734797005298,0.00826398,97350.0,97338.0,0.001541]
[1734797005502,0.051379,97341.0,97338.0,0.001541]
[1734797005902,0.051379,97340.0,97338.0,0.001541]
[1734797008425,0.052379,97340.0,97338.0,0.001541]
[1734797009426,0.051379,97340.0,97338.0,0.001541]
[1734797009626,0.052379,97340.0,97338.0,0.001541]
[1734797010923,0.051379,97340.0,97338.0,0.001541]
[1734797011125,0.0309,97339.0,97338.0,0.001541]
[1734797011327,0.0309,97339.0,97331.0,0.3608]
[1734797011525,0.051381,97336.0,97331.0,0.3608]
[1734797012628,0.052381,97336.0,97331.0,0.3608]
[1734797014331,0.051382,97335.0,97331.0,0.3608]
[1734797014527,0.051382,97334.0,97331.0,0.3608]
[1734797015030,0.051382,97333.0,97331.0,0.3608]
[1734797016728,0.001,97334.0,97327.0,0.0322]
[1734797016934,0.3608,97328.0,97311.0,0.4244]
[1734797017123,0.051393,97313.0,97311.0,0.3608]
[1734797017319,0.051393,97313.0,97298.0,0.3608]
[1734797017320,0.051393,97313.0,97302.0,0.0619]
[1734797018024,0.3608,97318.0,97302.0,0.0619]
[1734797018025,0.051394,97311.0,97308.0,0.051395]
[1734797018225,0.051394,97311.0,97303.0,0.051398]
[1734797019630,0.052394,97311.0,97303.0,0.051398]
[1734797019934,0.052394,97311.0,97302.0,0.0619]
[1734797020148,0.3608,97310.0,97302.0,0.0619]
[1734797020436,0.3608,97310.0,97302.0,0.03]
[1734797020637,0.3608,97310.0,97292.0,0.051404]
[1734797020940,0.3608,97310.0,97294.0,0.051403]
[1734797021130,0.3608,97310.0,97295.0,0.051402]
[1734797021434,0.3608,97310.0,97296.0,0.051401]
[1734797021625,0.3618,97310.0,97296.0,0.051401]
[1734797022141,0.3618,97310.0,97293.0,0.0316]
[1734797022336,0.002,97310.0,97307.0,0.3608]
[1734797022541,0.09186959,97326.0,97324.0,0.051387]
[1734797022929,0.09186959,97326.0,97317.0,0.3608]
[1734797023334,0.10131353,97330.0,97324.0,0.051387]
[1734797023534,0.051385,97329.0,97324.0,0.051387]
[1734797023739,0.001,97326.0,97324.0,0.051387]
[1734797024141,0.051385,97329.0,97324.0,0.051387]
[1734797024332,0.001,97326.0,97324.0,0.051387]
[1734797024638,0.001,97326.0,97324.0,0.052387]
[1734797025433,0.052386,97326.0,97324.0,0.001]
[1734797026141,0.36897844,97325.0,97324.0,0.001]
[1734797026333,0.36897844,97325.0,97324.0,0.003]
[1734797027439,0.36997844,97325.0,97324.0,0.002]
[1734797027635,0.36997844,97325.0,97324.0,0.003]
[1734797027948,0.3618,97325.0,97324.0,0.003]
[1734797031334,0.37001297,97325.0,97324.0,0.003]
[1734797032343,0.3700152,97325.0,97324.0,0.003]
[1734797033133,0.4006152,97325.0,97324.0,0.003]
[1734797034030,0.4006152,97325.0,97309.0,0.00011956]
[1734797034235,0.412195,97310.0,97309.0,0.00011956]
[1734797034438,0.4204102,97310.0,97309.0,0.00011956]
[1734797034841,0.412195,97310.0,97309.0,0.00011956]
[1734797035040,0.43465318,97310.0,97309.0,0.00011956]
[1734797035249,0.43465318,97310.0,97309.0,0.00111956]
[1734797036943,0.44599162,97310.0,97309.0,0.00011956]
[1734797037141,0.4574662,97310.0,97309.0,0.00011956]
[1734797038848,0.051399,97301.0,97300.0,0.1]
[1734797039049,0.08419562,97301.0,97300.0,0.1]
[1734797039249,0.09593188,97301.0,97300.0,0.1]
[1734797039750,0.08419562,97301.0,97300.0,0.1]
[1734797040247,0.08519562,97301.0,97300.0,0.1]
[1734797040456,0.07585718,97301.0,97300.0,0.1]
[1734797040750,0.08625428,97301.0,97300.0,0.1]
[1734797041050,0.08624161,97301.0,97300.0,0.1]
[1734797041736,0.08636919,97301.0,97300.0,0.1]
[1734797042436,0.0876878,97301.0,97300.0,0.1]
[1734797045051,0.09282835,97301.0,97300.0,0.1]
[1734797046044,0.09282835,97301.0,97279.0,0.051411]
[1734797046240,0.051409,97284.0,97279.0,0.051411]
[1734797046449,0.09071077,97283.0,97279.0,0.051411]
[1734797046651,0.03416122,97282.0,97279.0,0.051411]
[1734797046853,0.05675403,97281.0,97279.0,0.051411]
[1734797047038,0.05675408,97280.0,97279.0,0.051411]
[1734797047241,0.0567542,97280.0,97279.0,0.051411]
[1734797047443,0.05675424,97280.0,97279.0,0.051411]
[1734797047859,0.0639858,97280.0,97279.0,0.051411]
[1734797048056,0.01237249,97280.0,97278.0,0.0316]
[1734797048244,0.06557651,97279.0,97278.0,0.0316]
[1734797049156,0.06557651,97279.0,97266.0,0.31111097]
[1734797049157,0.051415,97271.0,97266.0,0.30602451]
[1734797049340,0.477884,97271.0,97266.0,0.30602451]
[1734797049544,0.48302558,97271.0,97266.0,0.30602451]
[1734797049841,0.48302558,97271.0,97260.0,0.3681788]
[1734797049842,0.065669,97271.0,97269.0,0.051416]
[1734797050555,0.067669,97271.0,97269.0,0.051416]
[1734797050946,0.03786859,97271.0,97269.0,0.051416]
[1734797051142,0.02255557,97271.0,97269.0,0.051416]
[1734797051451,0.02244158,97271.0,97269.0,0.051416]
[1734797052759,0.07385658,97271.0,97260.0,0.051421]
[1734797052953,0.10639001,97271.0,97260.0,0.051421]
[1734797053145,0.47233188,97271.0,97260.0,0.051421]
[1734797053346,0.48441957,97271.0,97260.0,0.051421]
[1734797053547,0.47233188,97271.0,97264.0,0.051419]
[1734797053743,0.47232387,97271.0,97264.0,0.051419]
[1734797054353,0.46718207,97271.0,97264.0,0.051419]
[1734797054745,0.47232385,97271.0,97264.0,0.051419]
[1734797055154,0.47232385,97271.0,97252.0,0.3608]
[1734797055356,0.46718207,97271.0,97266.0,0.051418]
[1734797055558,0.46718207,97271.0,97267.0,0.051417]
[1734797056058,0.46718207,97271.0,97252.0,0.412225]
[1734797056255,0.051425,97253.0,97252.0,0.3608]
[1734797056456,0.051428,97247.0,97246.0,0.24535692]
[1734797056655,0.07174777,97247.0,97246.0,0.24535692]
[1734797057056,0.08973573,97247.0,97246.0,0.24535692]
[1734797057260,0.051429,97245.0,97241.0,0.051431]
[1734797057464,0.08973673,97245.0,97241.0,0.051431]
[1734797057653,0.08973673,97245.0,97240.0,0.00154248]
[1734797057853,0.08973673,97245.0,97243.0,0.051429]
[1734797058558,0.03830773,97245.0,97240.0,0.00154248]
[1734797058759,0.3618,97247.0,97240.0,0.00154248]
[1734797058760,0.051431,97241.0,97240.0,0.00154248]
[1734797059059,0.05370997,97241.0,97230.0,0.0324]
[1734797059355,0.051435,97234.0,97230.0,0.0324]
[1734797059563,0.02081431,97233.0,97231.0,0.051436]
[1734797059752,0.01124155,97232.0,97231.0,0.051436]
[1734797060665,9.788e-05,97241.0,97240.0,0.051432]
[1734797060855,0.02955835,97241.0,97240.0,0.051432]
[1734797061162,0.03909626,97241.0,97240.0,0.051432]
[1734797061958,0.02955835,97241.0,97240.0,0.051432]
[1734797062154,0.03908937,97241.0,97240.0,0.051432]
[1734797062359,0.02955835,97241.0,97240.0,0.051432]
[1734797062560,0.03055835,97241.0,97240.0,0.051432]
[1734797062856,0.03155835,97241.0,97240.0,0.051432]
[1734797063755,0.04108201,97241.0,97240.0,0.051432]
[1734797064256,0.04108201,97241.0,97232.0,0.051435]
[1734797064457,0.08491941,97240.0,97232.0,0.051435]
[1734797064662,0.08491941,97240.0,97230.0,0.0324]
[1734797064663,0.05421936,97239.0,97230.0,0.0324]
[1734797064863,0.051434,97235.0,97230.0,0.0324]
[1734797065056,0.03915313,97234.0,97230.0,0.0324]
[1734797065252,0.03915313,97233.0,97230.0,0.0324]
[1734797065466,0.03915313,97232.0,97230.0,0.0324]
[1734797065662,0.03915313,97231.0,97230.0,0.0324]
[1734797066255,0.09058913,97231.0,97230.0,0.0324]
[1734797066657,0.10581038,97231.0,97230.0,0.0324]
[1734797066963,0.05537438,97231.0,97230.0,0.0324]
[1734797067164,0.04015313,97231.0,97230.0,0.0324]
[1734797067853,0.04115313,97231.0,97230.0,0.0324]
[1734797068063,0.002,97231.0,97230.0,0.0324]
[1734797068663,0.01335459,97231.0,97229.0,0.043837]
[1734797068859,0.01135459,97230.0,97229.0,0.043837]
[1734797069957,0.01226265,97230.0,97229.0,0.043837]
[1734797070464,0.03982328,97230.0,97229.0,0.043837]
[1734797070653,0.03982133,97230.0,97229.0,0.043837]
[1734797071455,0.04082133,97230.0,97229.0,0.043837]
[1734797072361,0.03982133,97230.0,97229.0,0.043837]
[1734797072670,0.04082133,97230.0,97229.0,0.043837]
[1734797073480,0.002,97230.0,97229.0,0.043837]
[1734797073663,0.04091495,97230.0,97229.0,0.043837]
[1734797074467,0.03991495,97230.0,97229.0,0.043837]
[1734797076460,0.03940033,97230.0,97229.0,0.043837]
[1734797076659,0.02829878,97230.0,97229.0,0.043837]
[1734797076859,0.05465763,97230.0,97229.0,0.043837]
[1734797077669,0.05465552,97230.0,97229.0,0.043837]
[1734797079262,0.06646632,97230.0,97229.0,0.043837]
[1734797079965,0.05465552,97230.0,97229.0,0.043837]
[1734797080669,0.03939899,97230.0,97229.0,0.043837]
[1734797082264,0.05469926,97230.0,97229.0,0.043837]
[1734797082459,0.05469987,97230.0,97229.0,0.043837]
[1734797082664,0.03939899,97230.0,97229.0,0.043837]
[1734797082863,0.03939899,97230.0,97229.0,0.29435271]
[1734797082864,0.0546993,97230.0,97229.0,0.29435271]
[1734797083458,0.05448932,97230.0,97229.0,0.29435271]
[1734797084967,0.05404632,97230.0,97229.0,0.29435271]
[1734797085174,0.02586559,97230.0,97229.0,0.29435271]
[1734797085367,0.05409752,97230.0,97229.0,0.29435271]
[1734797087081,0.05409752,97230.0,97229.0,0.66253151]
[1734797087372,0.05924062,97230.0,97229.0,0.66253151]
[1734797087574,0.02923193,97230.0,97229.0,0.66253151]
[1734797087873,0.05924901,97230.0,97229.0,0.66253151]
[1734797090169,0.09224901,97230.0,97229.0,0.25051571]
[1734797090467,0.08160199,97230.0,97229.0,0.25051571]
[1734797090673,0.12404026,97230.0,97229.0,0.25051571]
[1734797091269,0.13684018,97230.0,97229.0,0.25051571]
[1734797091672,0.22623515,97230.0,97223.0,0.30823507]
[1734797091867,0.05144,97225.0,97223.0,0.30823507]
[1734797092061,0.05844026,97224.0,97223.0,0.30823507]
[1734797092268,0.07124351,97224.0,97223.0,0.30823507]
[1734797093188,0.07141101,97224.0,97223.0,0.30823507]
[1734797093382,0.07141101,97224.0,97222.0,0.051441]
[1734797093383,0.08507899,97224.0,97222.0,0.051441]
[1734797093696,0.07227611,97223.0,97222.0,0.051441]
[1734797094877,0.07327611,97223.0,97222.0,0.051441]
[1734797095567,0.07275485,97223.0,97222.0,0.051441]
[1734797096371,0.07279631,97223.0,97222.0,0.051441]
[1734797096776,0.07379631,97223.0,97222.0,0.051441]
[1734797099871,0.06865231,97223.0,97222.0,0.051441]
[1734797100075,0.07379612,97223.0,97222.0,0.051441]
[1734797100872,0.06865231,97223.0,97222.0,0.051441]
[1734797101268,0.05690467,97223.0,97222.0,0.051441]
[1734797101781,0.05689159,97223.0,97222.0,0.051441]
[1734797102876,0.051442,97220.0,97218.0,0.30823507]
[1734797103087,0.06719508,97219.0,97218.0,0.30823507]
[1734797103376,0.07192995,97219.0,97218.0,0.30823507]
[1734797103581,0.05962646,97219.0,97218.0,0.30823507]
[1734797103981,0.05961978,97219.0,97218.0,0.30823507]
[1734797104175,0.07266769,97219.0,97217.0,0.051443]
[1734797104370,0.05961978,97218.0,97217.0,0.051443]
[1734797104674,0.07266769,97218.0,97217.0,0.051443]
[1734797105273,0.07909799,97218.0,97217.0,0.051443]
[1734797106379,0.08009799,97218.0,97217.0,0.051443]
[1734797106583,0.08109799,97218.0,97217.0,0.051443]
[1734797108876,0.08109794,97218.0,97217.0,0.051443]
[1734797109279,0.09149475,97218.0,97217.0,0.051443]
[1734797109972,0.09388468,97218.0,97217.0,0.051443]
[1734797112986,0.09390838,97218.0,97217.0,0.051443]
[1734797113375,0.051445,97214.0,97213.0,0.00010688]
[1734797113579,0.11476428,97214.0,97213.0,0.00010688]
[1734797114482,0.11576428,97214.0,97213.0,0.00010688]
[1734797114887,0.1093338,97214.0,97213.0,0.00010688]
[1734797115082,0.13462578,97214.0,97213.0,0.00010688]
[1734797115284,0.1410572,97214.0,97213.0,0.00010688]
[1734797115591,0.1410572,97214.0,97188.0,0.43031157]
[1734797115783,0.412249,97206.0,97188.0,0.43031157]
[1734797115984,0.5008612,97206.0,97204.0,0.30823507]
[1734797116178,0.04695877,97205.0,97204.0,0.30823507]
[1734797116485,0.08227179,97205.0,97204.0,0.30823507]
[1734797117283,0.08970389,97205.0,97204.0,0.30823507]
[1734797117491,0.08970389,97205.0,97184.0,0.051461]
[1734797117492,0.05146,97187.0,97184.0,0.051461]
[1734797117688,0.04052809,97186.0,97184.0,0.051461]
[1734797117886,0.04052809,97185.0,97184.0,0.051461]
[1734797118882,0.04051334,97185.0,97184.0,0.051461]
[1734797119082,0.051461,97184.0,97183.0,0.01056439]
[1734797119284,0.1083058,97184.0,97180.0,0.051463]
[1734797119484,0.06326293,97183.0,97180.0,0.051463]
[1734797119696,0.0568303,97182.0,97180.0,0.051463]
[1734797119883,0.0568303,97181.0,97180.0,0.051463]
[1734797120491,0.04051334,97181.0,97180.0,0.051463]
[1734797120690,0.04127473,97181.0,97180.0,0.051463]
[1734797121082,0.04227473,97181.0,97180.0,0.051463]
[1734797121487,0.051464,97179.0,97174.0,0.3608]
[1734797121688,0.04127473,97178.0,97174.0,0.3608]
[1734797121993,0.04127473,97177.0,97174.0,0.3608]
[1734797122286,0.09274073,97176.0,97174.0,0.3608]
[1734797122493,0.051466,97174.0,97171.0,0.01044367]
[1734797122688,0.04127473,97173.0,97165.0,0.30823507]
[1734797123229,0.04127473,97173.0,97160.0,0.35970907]
[1734797123230,0.12482141,97173.0,97160.0,0.35970907]
[1734797123402,0.12482141,97173.0,97161.0,0.01018073]
[1734797123691,0.12482141,97173.0,97160.0,0.35970907]
[1734797123692,0.051472,97164.0,97160.0,0.35970907]
[1734797123893,0.04127473,97163.0,97160.0,0.35970907]
[1734797124088,0.04127473,97162.0,97160.0,0.35970907]
[1734797124394,0.06342168,97161.0,97160.0,0.30823507]
[1734797124592,0.06342168,97161.0,97156.0,0.00154383]
[1734797124593,0.04096007,97161.0,97156.0,0.00154383]
[1734797124888,0.051478,97152.0,97150.0,0.00011093]
[1734797125089,0.02194989,97151.0,97150.0,0.00011093]
[1734797125281,0.04086734,97151.0,97150.0,0.00011093]
[1734797126281,0.04177338,97151.0,97150.0,0.00011093]
[1734797126687,0.04272524,97151.0,97150.0,0.00011093]
[1734797128293,0.04268531,97151.0,97140.0,0.3608]
[1734797128619,0.04268531,97151.0,97121.0,0.3608]
[1734797128620,0.3608,97147.0,97125.0,0.18429803]
[1734797128785,0.10131353,97140.0,97128.0,0.05149]
[1734797128986,0.051487,97137.0,97128.0,0.05149]
[1734797129186,0.04073608,97136.0,97128.0,0.05149]
[1734797129392,0.3608,97134.0,97128.0,0.05149]
[1734797129589,0.03077162,97133.0,97125.0,0.18429803]
[1734797129785,0.03077162,97132.0,97131.0,0.051489]
[1734797130694,0.002,97137.0,97131.0,0.351489]
[1734797130886,0.02901426,97149.0,97131.0,0.351489]
[1734797130887,0.01306108,97149.0,97148.0,0.05148]
[1734797131092,0.12012662,97160.0,97148.0,0.3608]
[1734797131294,0.051477,97155.0,97146.0,0.051481]
[1734797131590,0.10131353,97150.0,97137.0,0.0632]
[1734797131900,0.00996318,97149.0,97148.0,0.05148]
[1734797132598,0.001,97155.0,97153.0,0.051478]
[1734797132785,0.00996861,97154.0,97153.0,0.051478]
[1734797133994,0.051478,97153.0,97147.0,0.051481]
[1734797134197,0.05148,97148.0,97144.0,0.3608]
[1734797134491,0.051482,97146.0,97144.0,0.3608]
[1734797134699,0.05779185,97145.0,97144.0,0.3608]
[1734797134888,0.0737307,97145.0,97144.0,0.3608]
[1734797135396,0.051485,97140.0,97135.0,0.051487]
[1734797135594,0.051485,97140.0,97126.0,0.3608]
[1734797135595,0.0437307,97139.0,97137.0,0.051486]
[1734797135806,0.02779185,97138.0,97137.0,0.051486]
[1734797136190,0.00996861,97138.0,97137.0,0.051486]
[1734797136790,0.00996861,97138.0,97137.0,0.052486]
[1734797136990,0.02778264,97138.0,97137.0,0.052486]
[1734797137502,0.02878251,97138.0,97137.0,0.053486]
[1734797138089,0.01096861,97138.0,97137.0,0.053486]
[1734797138289,0.002,97138.0,97137.0,0.052486]
[1734797139004,0.01593703,97155.0,97137.0,0.001]
[1734797139295,0.00996112,97154.0,97153.0,0.051478]
[1734797139700,0.01306108,97164.0,97153.0,0.051478]
[1734797139901,0.09189423,97169.0,97160.0,0.051474]
[1734797140198,0.00983596,97161.0,97160.0,0.051474]
[1734797140792,0.07863397,97161.0,97152.0,0.051478]
[1734797141095,0.3608,97158.0,97153.0,0.051477]
[1734797141397,0.00974636,97157.0,97155.0,0.051476]
[1734797141597,0.00974636,97156.0,97155.0,0.051476]
[1734797142491,0.04253589,97156.0,97155.0,0.002]
[1734797142893,0.06600282,97156.0,97154.0,0.051477]
[1734797143089,0.01362563,97156.0,97155.0,0.005]
[1734797143297,0.03698233,97156.0,97155.0,0.005]
[1734797143499,0.05435644,97156.0,97155.0,0.005]
[1734797143801,0.06695752,97156.0,97155.0,0.005]
[1734797144305,0.05435644,97156.0,97155.0,0.005]
[1734797144600,0.06695627,97156.0,97155.0,0.003]
[1734797144791,0.06695627,97156.0,97154.0,0.064477]
[1734797144991,0.05335644,97155.0,97154.0,0.064477]
[1734797145187,0.05335644,97155.0,97154.0,0.004]
[1734797145490,0.07111141,97155.0,97150.0,0.3608]
[1734797145695,0.051479,97151.0,97146.0,0.051481]
[1734797145897,0.14142853,97150.0,97146.0,0.051481]
[1734797146096,0.07115688,97149.0,97146.0,0.051481]
[1734797146292,0.051481,97147.0,97138.0,0.083185]
[1734797146501,0.05854943,97146.0,97144.0,0.051482]
[1734797146699,0.05340132,97145.0,97144.0,0.051482]
[1734797147009,0.02053897,97145.0,97144.0,0.051482]
[1734797147502,0.00968015,97145.0,97144.0,0.051482]
[1734797147700,0.001,97155.0,97154.0,0.051477]
[1734797147896,0.00971509,97155.0,97154.0,0.412277]
[1734797148791,0.01964781,97155.0,97154.0,0.412277]
[1734797148992,0.02064781,97155.0,97154.0,0.421277]
[1734797149195,0.02064787,97155.0,97154.0,0.425277]
[1734797149805,0.03615605,97155.0,97154.0,0.425277]
[1734797150801,0.05356472,97155.0,97154.0,0.425277]
[1734797151508,0.05452235,97155.0,97154.0,0.425277]
[1734797151900,0.05408262,97155.0,97154.0,0.425277]
[1734797152501,8.96e-05,97161.0,97160.0,0.051474]
[1734797152703,0.01708978,97161.0,97160.0,0.051474]
[1734797152908,0.09189423,97169.0,97160.0,0.051474]
[1734797152909,0.09189423,97169.0,97168.0,0.05147]
[1734797153108,0.09189423,97169.0,97168.0,0.41227]
[1734797153899,0.09197095,97169.0,97168.0,0.41227]
[1734797154206,0.09192161,97189.0,97188.0,0.051459]
[1734797154514,0.10881529,97189.0,97188.0,0.051459]
[1734797155096,0.10892805,97189.0,97188.0,0.051459]
[1734797155301,0.01700644,97189.0,97188.0,0.051459]
[1734797155508,0.01900644,97189.0,97188.0,0.051459]
[1734797155708,0.02100644,97189.0,97188.0,0.051459]
[1734797157007,0.00211276,97189.0,97188.0,0.051459]
[1734797157207,0.00311276,97189.0,97188.0,0.051459]
[1734797157618,0.00211276,97189.0,97188.0,0.053459]
[1734797158214,0.00011276,97189.0,97188.0,0.053459]
[1734797158412,0.00211276,97189.0,97188.0,0.053459]
[1734797159006,0.00011276,97189.0,97188.0,0.053459]
[1734797160209,0.3608,97209.0,97188.0,0.053459]
[1734797160210,0.0319,97219.0,97188.0,0.302]
[1734797160409,0.0319,97219.0,97218.0,0.412243]
[1734797161214,0.04102424,97219.0,97218.0,0.412243]
[1734797161409,0.04802424,97219.0,97218.0,0.412243]
[1734797161815,0.04002424,97219.0,97218.0,0.421243]
[1734797162321,0.03302424,97219.0,97218.0,0.424243]
[1734797163410,0.03202424,97219.0,97218.0,0.424243]
[1734797163613,0.03302424,97219.0,97218.0,0.424243]
[1734797163817,0.03302424,97219.0,97218.0,0.421243]
[1734797164119,0.03302424,97219.0,97218.0,0.425243]
[1734797164307,0.00112424,97219.0,97218.0,0.425243]
[1734797164515,0.37287605,97239.0,97235.0,0.051434]
[1734797164516,0.0638,97236.0,97235.0,0.051434]
[1734797164714,0.0324,97236.0,97235.0,0.051434]
[1734797164916,0.0308,97238.0,97228.0,0.3608]
[1734797165110,0.0308,97238.0,97237.0,0.412233]
[1734797165319,0.1227641,97258.0,97237.0,0.3608]
[1734797165613,0.0308,97257.0,97256.0,0.412223]
[1734797165824,0.03092499,97257.0,97256.0,0.412223]
[1734797166219,0.00012499,97257.0,97256.0,0.412223]
[1734797167113,0.0308,97277.0,97276.0,0.051412]
[1734797167318,0.0308,97277.0,97276.0,0.412212]
[1734797167718,0.051416,97269.0,97256.0,0.009]
[1734797167914,0.051425,97252.0,97237.0,0.051433]
[1734797168118,0.001,97257.0,97232.0,0.3608]
[1734797168318,0.001,97257.0,97240.0,0.3608]
[1734797168319,0.0645,97251.0,97240.0,0.3608]
[1734797168518,0.051436,97232.0,97221.0,0.3658881]
[1734797168717,0.10131353,97231.0,97221.0,0.0050881]
[1734797169025,0.3608,97222.0,97219.0,0.2184788]
[1734797169213,0.0515271,97221.0,97219.0,0.2184788]
[1734797170149,8.51e-05,97221.0,97216.0,0.051444]
[1734797170424,8.51e-05,97221.0,97220.0,0.051442]
[1734797171224,0.0010851,97221.0,97220.0,0.051442]
[1734797172630,0.0010851,97221.0,97219.0,0.002]
[1734797172818,0.0628,97220.0,97219.0,0.002]
[1734797173326,0.0301,97220.0,97210.0,0.3608]
[1734797173521,0.0301,97220.0,97218.0,0.051443]
[1734797173825,0.0301,97220.0,97200.0,0.00154299]
[1734797173826,0.0301,97220.0,97209.0,0.051448]
[1734797174025,0.0311,97220.0,97211.0,0.051446]
[1734797174238,0.0311,97220.0,97214.0,0.051445]